fUSD/lending_fUSD_20240101
["ID","MTS","AMOUNT","RATE_DAILY","PERIOD"]
[309781194,1704117045988,-511.9747879,0.00035616,2]
[309781195,1704117045997,-500.0,0.00035616,2]
[309781196,1704117046006,-500.0,0.00035616,2]
[309781197,1704117046016,-500.0,0.00035616,2]
[309781198,1704117046025,-511.89739743,0.00035616,2]
[309781199,1704117046035,-500.0,0.00035616,2]
[309781200,1704117046044,-517.10657646,0.00035616,2]
[309781201,1704117046054,-500.0,0.00035616,2]
[309781202,1704117046063,-573.66683695,0.00035616,2]
[309781203,1704117046073,-569.2071686,0.00035616,2]
[309781204,1704117046082,-565.91381161,0.00035616,2]
[309781205,1704117046091,-525.38652745,0.00035616,2]
[309781206,1704117046099,-519.02293499,0.00035616,2]
[309781207,1704117046109,-509.2372226,0.00035616,2]
[309781208,1704117046118,-1000.0,0.00035616,2]
[309781209,1704117046127,-505.29348929,0.00035616,2]
[309781210,1704117046136,-517.5739963,0.00035616,2]
[309781211,1704117046145,-647.84,0.00035616,2]
[309781212,1704117046156,-514.55806657,0.00035616,2]
[309781213,1704117046166,-512.96023445,0.00035616,2]
[309781214,1704117046175,-523.08625192,0.00035616,2]
[309781215,1704117046184,-512.63267816,0.00035616,2]
[309781216,1704117046197,-532.79164918,0.00035616,2]
[309781217,1704117046210,-377.94160516,0.00035616,2]
[309781218,1704117046219,-522.76549255,0.00035616,2]
[309781219,1704117046230,-500.0,0.00035616,2]
[309781220,1704117046241,-526.8313722,0.00035616,2]
[309781221,1704117046251,-500.0,0.00035616,2]
[309781222,1704117046262,-505.42131842,0.00035616,2]
[309781223,1704117046274,-514.7581205,0.00035616,2]
[309781224,1704117046285,-500.0,0.00035616,2]
[309781225,1704117046296,-500.0,0.00035616,2]
[309781226,1704117046307,-500.0,0.00035616,2]
[309781227,1704117046316,-528.7412084,0.00035616,2]
[309781228,1704117046325,-500.0,0.00035616,2]
[309781229,1704117046335,-500.0,0.00035616,2]
[309781230,1704117046345,-500.0,0.00035616,2]
[309781231,1704117046354,-513.74375784,0.00035616,2]
[309781232,1704117046365,-634.98434273,0.00035616,2]
[309781233,1704117046375,-533.50532896,0.00035616,2]
[309781234,1704117046386,-500.0,0.00035616,2]
[309781235,1704117046397,-537.77815549,0.00035616,2]
[309781236,1704117046408,-510.61980248,0.00035616,2]
[309781237,1704117046419,-533.19790361,0.00035616,2]
[309781238,1704117046429,-500.0,0.00035616,2]
[309781239,1704117046438,-519.74912738,0.00035616,2]
[309781240,1704117046447,-525.52366005,0.00035616,2]
[309781241,1704117046457,-500.0,0.00035616,2]
[309781242,1704117046466,-500.0,0.00035616,2]
[309781243,1704117046475,-519.72425403,0.00035616,2]
[309781244,1704117046484,-504.82550295,0.00035616,2]
[309781245,1704117046493,-500.0,0.00035616,2]
[309781246,1704117046502,-500.0,0.00035616,2]
[309781247,1704117046513,-509.76944173,0.00035616,2]
[309781248,1704117046524,-500.0,0.00035616,2]
[309781249,1704117046534,-500.0,0.00035616,2]
[309781250,1704117046547,-500.0,0.00035616,2]
[309781251,1704117046558,-500.0,0.00035616,2]
[309781252,1704117046569,-500.0,0.00035616,2]
[309781253,1704117046579,-424.84726353,0.00035616,2]
[309781254,1704117046590,-500.0,0.00035616,2]
[309781255,1704117046600,-500.0,0.00035616,2]
[309781256,1704117046610,-516.60713614,0.00035616,2]
[309781257,1704117046620,-607.87305704,0.00035616,2]
[309781258,1704117046631,-500.0,0.00035616,2]
[309781259,1704117046641,-508.40201862,0.00035616,2]
[309781260,1704117046652,-550.28545039,0.00035616,2]
[309781261,1704117046662,-519.97113787,0.00035616,2]
[309781262,1704117046672,-550.94861161,0.00035616,2]
[309781263,1704117046682,-513.78016943,0.00035616,2]
[309781264,1704117046691,-504.60927189,0.00035616,2]
[309781265,1704117046701,-500.0,0.00035616,2]
[309781266,1704117046713,-500.0,0.00035616,2]
[309781267,1704117046723,-500.0,0.00035616,2]
[309781268,1704117046734,-549.42900347,0.00035616,2]
[309781269,1704117046743,-590.12,0.00035616,2]
[309781270,1704117046753,-533.87563956,0.00035616,2]
[309781271,1704117046764,-625.58225796,0.00035616,2]
[309781272,1704117046777,-534.90779273,0.00035616,2]
[309781273,1704117046788,-500.0,0.00035616,2]
[309781274,1704117046800,-500.0,0.00035616,2]
[309781275,1704117046811,-620.22020764,0.00035616,2]
[309781276,1704117046822,-500.0,0.00035616,2]
[309781277,1704117046833,-622.8152895,0.00035616,2]
[309781278,1704117046843,-515.45685976,0.00035616,2]
[309781279,1704117046853,-500.0,0.00035616,2]
[309781280,1704117046863,-397.95089833,0.00035616,2]
[309781281,1704117046873,-500.0,0.00035616,2]
[309781282,1704117046888,-570.47488321,0.00035616,2]
[309781283,1704117046898,-510.77619079,0.00035616,2]
[309781284,1704117046908,-500.0,0.00035616,2]
[309781285,1704117046920,-500.0,0.00035616,2]
[309781286,1704117046930,-500.00475596,0.00035616,2]
[309781287,1704117046940,-519.66114556,0.00035616,2]
[309781288,1704117046950,-500.0,0.00035616,2]
[309781289,1704117046960,-513.90152763,0.00035616,2]
[309781290,1704117046970,-500.0,0.00035616,2]
[309781291,1704117046980,-500.0,0.00035616,2]
[309781292,1704117046989,-500.0,0.00035616,2]
[309781293,1704117047000,-551.50442566,0.00035616,2]
[309781294,1704117047010,-500.0,0.00035616,2]
[309781295,1704117047019,-509.26665043,0.00035616,2]
[309781296,1704117047029,-500.0,0.00035616,2]
[309781297,1704117047038,-537.65340601,0.00035616,2]
[309781298,1704117047049,-500.0,0.00035616,2]
[309781299,1704117047058,-511.45685428,0.00035616,2]
[309781300,1704117047069,-595.44117964,0.00035616,2]
[309781301,1704117047080,-500.0,0.00035616,2]
[309781302,1704117047089,-500.0,0.00035616,2]
[309781303,1704117047099,-405.34051268,0.00035616,2]
[309781304,1704117047109,-531.06209311,0.00035616,2]
[309781305,1704117047120,-526.14111663,0.00035616,2]
[309781306,1704117047129,-500.0,0.00035616,2]
[309781307,1704117047138,-500.0,0.00035616,2]
[309781308,1704117047147,-611.91907231,0.00035616,2]
[309781309,1704117047157,-526.59449558,0.00035616,2]
[309781310,1704117047166,-500.0,0.00035616,2]
[309781311,1704117047176,-632.40934675,0.00035616,2]
[309781312,1704117047186,-580.17901917,0.00035616,2]
[309781313,1704117047196,-500.0,0.00035616,2]
[309781314,1704117047207,-522.38571337,0.00035616,2]
[309781315,1704117047218,-500.0,0.00035616,2]
[309781316,1704117047227,-500.0,0.00035616,2]
[309781317,1704117047236,-500.0,0.00035616,2]
[309781318,1704117047246,-462.73756647,0.00035616,2]
[309781319,1704117047256,-509.2808565,0.00035616,2]
[309781320,1704117047265,-500.0,0.00035616,2]
[309781321,1704117047278,-500.0,0.00035616,2]
[309781322,1704117047287,-592.09,0.00035616,2]
[309781323,1704117047299,-500.0,0.00035616,2]
[309781324,1704117047311,-557.66,0.00035616,2]
[309781325,1704117047323,-511.13813461,0.00035616,2]
[309781326,1704117047334,-511.53488041,0.00035616,2]
[309781327,1704117047344,-523.45220398,0.00035616,2]
[309781328,1704117047355,-605.49,0.00035616,2]
[309781329,1704117047365,-541.51545756,0.00035616,2]
[309781330,1704117047376,-500.0,0.00035616,2]
[309781331,1704117047387,-502.71219593,0.00035616,2]
[309781332,1704117047397,-500.0,0.00035616,2]
[309781333,1704117047407,-531.33253483,0.00035616,2]
[309781334,1704117047417,-529.99477506,0.00035616,2]
[309781335,1704117047428,-500.0,0.00035616,2]
[309781336,1704117047439,-500.0,0.00035616,2]
[309781337,1704117047450,-500.0,0.00035616,2]
[309781338,1704117047460,-518.40629639,0.00035616,2]
[309781339,1704117047471,-500.0,0.00035616,2]
[309781340,1704117047482,-500.0,0.00035616,2]
[309781341,1704117047493,-500.0,0.00035616,2]
[309781342,1704117047503,-500.0,0.00035616,2]
[309781343,1704117047513,-500.0,0.00035616,2]
[309781344,1704117047522,-500.0,0.00035616,2]
[309781345,1704117047532,-500.0,0.00035616,2]
[309781346,1704117047543,-500.0,0.00035616,2]
[309781347,1704117047554,-500.0,0.00035616,2]
[309781348,1704117047566,-500.0,0.00035616,2]
[309781349,1704117047576,-500.0,0.00035616,2]
[309781350,1704117047589,-500.0,0.00035616,2]
[309781351,1704117047600,-524.98706148,0.00035616,2]
[309781352,1704117047612,-516.17669203,0.00035616,2]
[309781353,1704117047623,-500.0,0.00035616,2]
[309781354,1704117047637,-500.0,0.00035616,2]
[309781355,1704117047650,-500.0,0.00035616,2]
[309781356,1704117047662,-500.0,0.00035616,2]
[309781357,1704117047672,-502.27314585,0.00035616,2]
[309781358,1704117047683,-500.0,0.00035616,2]
[309781359,1704117047693,-500.0,0.00035616,2]
[309781360,1704117047704,-500.0,0.00035616,2]
[309781361,1704117047714,-511.49605056,0.00035616,2]
[309781362,1704117047724,-500.0,0.00035616,2]
[309781363,1704117047734,-500.0,0.00035616,2]
[309781364,1704117047744,-500.0,0.00035616,2]
[309781365,1704117047754,-539.80087549,0.00035616,2]
[309781366,1704117047766,-500.0,0.00035616,2]
[309781367,1704117047777,-500.0,0.00035616,2]
[309781368,1704117047786,-551.61155512,0.00035616,2]
[309781369,1704117047796,-500.0,0.00035616,2]
[309781370,1704117047806,-500.0,0.00035616,2]
[309781371,1704117047815,-500.0,0.00035616,2]
[309781372,1704117047826,-645.38257901,0.00035616,2]
[309781373,1704117047837,-500.83252815,0.00035616,2]
[309781374,1704117047848,-534.05069639,0.00035616,2]
[309781375,1704117047859,-510.7222628,0.00035616,2]
[309781376,1704117047869,-288.63777243,0.00035616,2]
[309781377,1704117047879,-500.0,0.00035616,2]
[309781378,1704117047890,-500.0,0.00035616,2]
[309781379,1704117047900,-500.0,0.00035616,2]
[309781380,1704117047909,-500.0,0.00035616,2]
[309781381,1704117047920,-500.0,0.00035616,2]
[309781382,1704117047930,-500.0,0.00035616,2]
[309781383,1704117047941,-500.0,0.00035616,2]
[309781384,1704117047952,-500.0,0.00035616,2]
[309781385,1704117047962,-500.0,0.00035616,2]
[309781386,1704117047972,-500.0,0.00035616,2]
[309781387,1704117047982,-500.0,0.00035616,2]
[309781388,1704117047991,-500.0,0.00035616,2]
[309781389,1704117048000,-500.0,0.00035616,2]
[309781390,1704117048010,-500.0,0.00035616,2]
[309781391,1704117048020,-500.0,0.00035616,2]
[309781392,1704117048031,-500.0,0.00035616,2]
[309781393,1704117048041,-500.0,0.00035616,2]
[309781394,1704117048052,-500.0,0.00035616,2]
[309781395,1704117048062,-500.0,0.00035616,2]
[309781396,1704117048072,-507.41536036,0.00035616,2]
[309781397,1704117048082,-500.0,0.00035616,2]
[309781398,1704117048093,-513.27297505,0.00035616,2]
[309781399,1704117048104,-500.0,0.00035616,2]
[309781400,1704117048113,-515.96053856,0.00035616,2]
[309781401,1704117048123,-500.0,0.00035616,2]
[309781402,1704117048134,-500.0,0.00035616,2]
[309781403,1704117048143,-500.0,0.00035616,2]
[309781404,1704117048153,-500.0,0.00035616,2]
[309781405,1704117048164,-500.0,0.00035616,2]
[309781406,1704117048173,-500.0,0.00035616,2]
[309781407,1704117048183,-500.0,0.00035616,2]
[309781408,1704117048195,-500.0,0.00035616,2]
[309781409,1704117048205,-500.0,0.00035616,2]
[309781410,1704117048215,-500.0,0.00035616,2]
[309781411,1704117048225,-500.0,0.00035616,2]
[309781412,1704117048235,-500.0,0.00035616,2]
[309781413,1704117048245,-529.38274151,0.00035616,2]
[309781414,1704117048256,-500.0,0.00035616,2]
[309781415,1704117048265,-561.25211756,0.00035616,2]
[309781416,1704117048275,-513.9143175,0.00035616,2]
[309781417,1704117048285,-500.0,0.00035616,2]
[309781418,1704117048296,-500.0,0.00035616,2]
[309781419,1704117048306,-500.0,0.00035616,2]
[309781420,1704117048316,-529.32872257,0.00035616,2]
[309781421,1704117048326,-500.0,0.00035616,7]
[309781422,1704117048338,-500.0,0.00035616,2]
[309781423,1704117048349,-500.0,0.00035616,2]
[309781424,1704117048359,-500.0,0.00035616,2]
[309781425,1704117048470,-221.57853078,0.00035616,2]
[309781426,1704117048493,-500.0,0.00035616,2]
[309781427,1704117048502,-500.0,0.00035616,2]
[309781428,1704117048511,-500.0,0.00035616,2]
[309781429,1704117048520,-500.0,0.00035616,2]
[309781430,1704117048529,-538.27952703,0.00035616,2]
[309781431,1704117048539,-528.38049379,0.00035616,2]
[309781432,1704117048548,-500.0,0.00035616,2]
[309781433,1704117048557,-518.7778639,0.00035616,2]
[309781434,1704117048566,-534.10943243,0.00035616,2]
[309781435,1704117048575,-500.0,0.00035616,2]
[309781436,1704117048585,-500.0,0.00035616,2]
[309781437,1704117048595,-519.05978576,0.00035616,2]
[309781438,1704117048604,-500.0,0.00035616,2]
[309781439,1704117048613,-500.0,0.00035616,2]
[309781440,1704117048622,-501.93,0.00035616,2]
[309781441,1704117048631,-500.0,0.00035616,2]
[309781442,1704117048639,-508.44602202,0.00035616,2]
[309781443,1704117048649,-500.0,0.00035616,2]
[309781444,1704117048658,-511.57607404,0.00035616,2]
[309781445,1704117048666,-522.51967872,0.00035616,2]
[309781446,1704117048675,-525.91589533,0.00035616,2]
[309781447,1704117048685,-509.18687513,0.00035616,2]
[309781448,1704117048694,-500.0,0.00035616,2]
[309781449,1704117048703,-531.95319129,0.00035616,2]
[309781450,1704117048712,-563.35600792,0.00035616,2]
[309781451,1704117048721,-500.0,0.00035616,2]
[309781452,1704117048730,-500.0,0.00035616,2]
[309781453,1704117048740,-528.49,0.00035616,2]
[309781454,1704117048752,-500.0,0.00035616,2]
[309781455,1704117048761,-352.40817318,0.00035616,2]
[309781456,1704117048771,-500.0,0.00035616,2]
[309781457,1704117048784,-520.49109013,0.00035616,2]
[309781458,1704117048794,-500.0,0.00035616,2]
[309781459,1704117048804,-510.69425047,0.00035616,2]
[309781460,1704117048817,-539.58065826,0.00035616,2]
[309781461,1704117048826,-530.9672564,0.00035616,2]
[309781462,1704117048837,-536.90620094,0.00035616,2]
[309781463,1704117048846,-500.0,0.00035616,2]
[309781464,1704117048855,-507.66247652,0.00035616,2]
[309781465,1704117048865,-548.81,0.00035616,2]
[309781466,1704117048875,-515.97310958,0.00035616,2]
[309781467,1704117048885,-563.27976869,0.00035616,2]
[309781468,1704117048894,-500.0,0.00035616,2]
[309781469,1704117048903,-358.2012029,0.00035616,2]
[309781470,1704117048912,-610.03,0.00035616,2]
[309781471,1704117048922,-500.0,0.00035616,2]
[309781472,1704117048931,-500.0,0.00035616,2]
[309781473,1704117048941,-516.40399521,0.00035616,2]
[309781474,1704117048951,-512.91372002,0.00035616,2]
[309781475,1704117048961,-532.21,0.00035616,2]
[309781476,1704117048971,-537.0592534,0.00035616,2]
[309781477,1704117048981,-500.0,0.00035616,2]
[309781478,1704117048991,-500.0,0.00035616,2]
[309781479,1704117049001,-500.0,0.00035616,2]
[309781480,1704117049011,-574.99838846,0.00035616,2]
[309781481,1704117049022,-500.0,0.00035616,2]
[309781482,1704117049032,-548.29768383,0.00035616,2]
[309781483,1704117049042,-517.63040791,0.00035616,2]
[309781484,1704117049052,-500.22483867,0.00035616,2]
[309781485,1704117049062,-287.11,0.00035616,2]
[309781486,1704117049073,-539.80508727,0.00035616,2]
[309781487,1704117049084,-500.0,0.00035616,2]
[309781488,1704117049094,-581.08042136,0.00035616,2]
[309781489,1704117049104,-517.64471556,0.00035616,2]
[309781490,1704117049113,-500.0,0.00035616,2]
[309781491,1704117049123,-500.0,0.00035616,2]
[309781492,1704117049133,-500.0,0.00035616,2]
[309781493,1704117049143,-500.0,0.00035616,2]
[309781494,1704117049153,-232.2482938,0.00035616,2]
[309781495,1704117049162,-500.0,0.00035616,2]
[309781496,1704117049172,-557.57841972,0.00035616,2]
[309781497,1704117049181,-511.84497469,0.00035616,2]
[309781498,1704117049190,-551.42054861,0.00035616,2]
[309781499,1704117049200,-500.0,0.00035616,2]
[309781500,1704117049209,-532.33751609,0.00035616,2]
[309781501,1704117049218,-500.0,0.00035616,2]
[309781502,1704117049227,-639.32333956,0.00035616,2]
[309781503,1704117049236,-500.0,0.00035616,2]
[309781504,1704117049246,-617.11124603,0.00035616,2]
[309781505,1704117049255,-366.88540549,0.00035616,2]
[309781506,1704117049264,-555.50678083,0.00035616,2]
[309781507,1704117049273,-500.0,0.00035616,2]
[309781508,1704117049283,-1013.39,0.00035616,2]
[309781509,1704117049292,-1013.39,0.00035616,2]
[309781510,1704117049301,-1013.39,0.00035616,2]
[309781511,1704117049310,-1013.39,0.00035616,2]
[309781512,1704117049319,-1013.39,0.00035616,2]
[309781513,1704117049328,-1013.39,0.00035616,2]
[309781514,1704117049338,-1013.39,0.00035616,2]
[309781515,1704117049347,-509.37435097,0.00035616,2]
[309781516,1704117049356,-541.93939349,0.00035616,2]
[309781517,1704117049365,-1013.39,0.00035616,2]
[309781518,1704117049374,-1013.39,0.00035616,2]
[309781519,1704117049383,-1013.39,0.00035616,2]
[309781520,1704117049392,-1013.39,0.00035616,2]
[309781521,1704117049401,-1013.39,0.00035616,2]
[309781522,1704117049410,-503.91863287,0.00035616,2]
[309781523,1704117049420,-1013.39,0.00035616,2]
[309781524,1704117049428,-1013.39,0.00035616,2]
[309781525,1704117049438,-513.62582488,0.00035616,2]
[309781526,1704117049447,-507.34905904,0.00035616,2]
[309781527,1704117049456,-500.0,0.00035616,2]
[309781528,1704117049465,-528.19318586,0.00035616,2]
[309781529,1704117049474,-500.0,0.00035616,2]
[309781530,1704117049483,-525.19360879,0.00035616,2]
[309781531,1704117049492,-532.16492875,0.00035616,2]
[309781532,1704117049500,-500.0,0.00035616,2]
[309781533,1704117049510,-500.0,0.00035616,2]
[309781534,1704117049519,-500.0,0.00035616,2]
[309781535,1704117049528,-510.11515963,0.00035616,2]
[309781536,1704117049537,-500.0,0.00035616,2]
[309781537,1704117049547,-525.21625819,0.00035616,2]
[309781538,1704117049556,-500.0,0.00035616,2]
[309781539,1704117049569,-500.0,0.00035616,2]
[309781540,1704117049578,-500.0,0.00035616,2]
[309781541,1704117049589,-500.0,0.00035616,2]
[309781542,1704117049599,-506.18791552,0.00035616,2]
[309781543,1704117049610,-500.0,0.00035616,2]
[309781544,1704117049621,-506.04450675,0.00035616,2]
[309781545,1704117049631,-528.69337993,0.00035616,2]
[309781546,1704117049641,-500.0,0.00035616,2]
[309781547,1704117049652,-502.92722139,0.00035616,2]
[309781548,1704117049662,-500.0,0.00035616,2]
[309781549,1704117049672,-520.57482917,0.00035616,2]
[309781550,1704117049681,-509.5266618,0.00035616,2]
[309781551,1704117049691,-334.22694832,0.00035616,2]
[309781552,1704117049700,-500.0,0.00035616,2]
[309781553,1704117049710,-542.75671683,0.00035616,2]
[309781554,1704117049720,-527.11899562,0.00035616,2]
[309781555,1704117049732,-513.88598532,0.00035616,2]
[309781556,1704117049741,-500.0,0.00035616,2]
[309781557,1704117049751,-538.20745703,0.00035616,2]
[309781558,1704117049761,-500.0,0.00035616,2]
[309781559,1704117049772,-500.0,0.00035616,2]
[309781560,1704117049782,-500.0,0.00035616,2]
[309781561,1704117049793,-515.49812002,0.00035616,2]
[309781562,1704117049802,-500.0,0.00035616,2]
[309781563,1704117049811,-545.38297382,0.00035616,2]
[309781564,1704117049821,-763.87,0.00035616,2]
[309781565,1704117049831,-500.0,0.00035616,2]
[309781566,1704117049840,-522.38024277,0.00035616,2]
[309781567,1704117049849,-544.69856701,0.00035616,2]
[309781568,1704117049859,-515.82012182,0.00035616,2]
[309781569,1704117049868,-500.0,0.00035616,2]
[309781570,1704117049878,-500.0,0.00035616,2]
[309781571,1704117049887,-500.0,0.00035616,2]
[309781572,1704117049896,-536.76561039,0.00035616,2]
[309781573,1704117049906,-553.09898137,0.00035616,2]
[309781574,1704117049915,-522.16438335,0.00035616,2]
[309781575,1704117049925,-500.0,0.00035616,2]
[309781576,1704117049934,-521.29824727,0.00035616,2]
[309781577,1704117049944,-526.0756237,0.00035616,2]
[309781578,1704117049954,-500.0,0.00035616,2]
[309781579,1704117049964,-562.88011869,0.00035616,2]
[309781580,1704117049973,-531.46404375,0.00035616,2]
[309781581,1704117049983,-516.31339418,0.00035616,2]
[309781582,1704117049993,-500.0,0.00035616,2]
[309781583,1704117050002,-514.76195547,0.00035616,2]
[309781584,1704117050012,-500.0,0.00035616,2]
[309781585,1704117050021,-519.81935478,0.00035616,2]
[309781586,1704117050031,-500.0,0.00035616,2]
[309781587,1704117050040,-500.0,0.00035616,2]
[309781588,1704117050051,-500.0,0.00035616,2]
[309781589,1704117050060,-500.0,0.00035616,2]
[309781590,1704117050071,-519.2180849,0.00035616,2]
[309781591,1704117050081,-532.09806906,0.00035616,2]
[309781592,1704117050091,-513.96620569,0.00035616,2]
[309781593,1704117050100,-508.06079004,0.00035616,2]
[309781594,1704117050110,-528.83,0.00035616,2]
[309781595,1704117050119,-513.30578235,0.00035616,2]
[309781596,1704117050129,-543.28028118,0.00035616,2]
[309781597,1704117050139,-500.0,0.00035616,2]
[309781598,1704117050149,-500.0,0.00035616,2]
[309781599,1704117050158,-583.95341864,0.00035616,2]
[309781600,1704117050168,-500.0,0.00035616,2]
[309781601,1704117050177,-500.0,0.00035616,2]
[309781602,1704117050187,-500.0,0.00035616,2]
[309781603,1704117050196,-541.80002537,0.00035616,2]
[309781604,1704117050206,-500.0,0.00035616,2]
[309781605,1704117050215,-270.93086775,0.00035616,2]
[309781606,1704117050224,-500.0,0.00035616,2]
[309781607,1704117050234,-500.0,0.00035616,2]
[309781608,1704117050244,-500.0,0.00035616,2]
[309781609,1704117050253,-543.65426233,0.00035616,2]
[309781610,1704117050263,-237.77165672,0.00035616,2]
[309781611,1704117050272,-500.0,0.00035616,2]
[309781612,1704117050282,-513.35792041,0.00035616,2]
[309781613,1704117050292,-537.86158688,0.00035616,2]
[309781614,1704117050301,-192.8829442,0.00035616,2]
[309781615,1704117050311,-500.0,0.00035616,2]
[309781616,1704117050320,-532.96774188,0.00035616,2]
[309781617,1704117050330,-534.69223654,0.00035616,2]
[309781618,1704117050339,-541.09327016,0.00035616,2]
[309781619,1704117050348,-500.0,0.00035616,2]
[309781620,1704117050357,-525.87325759,0.00035616,2]
[309781621,1704117050366,-500.0,0.00035616,2]
[309781622,1704117050376,-514.99796846,0.00035616,2]
[309781623,1704117050385,-577.29,0.00035616,2]
[309781624,1704117050394,-540.2,0.00035616,2]
[309781625,1704117050403,-531.30767659,0.00035616,2]
[309781626,1704117050412,-500.0,0.00035616,2]
[309781627,1704117050421,-601.51589081,0.00035616,2]
[309781628,1704117050430,-500.0,0.00035616,2]
[309781629,1704117050440,-500.0,0.00035616,2]
[309781630,1704117050450,-543.21323888,0.00035616,2]
[309781631,1704117050459,-540.79338282,0.00035616,2]
[309781632,1704117050468,-500.0,0.00035616,2]
[309781633,1704117050477,-500.0,0.00035616,2]
[309781634,1704117050486,-550.74759926,0.00035616,2]
[309781635,1704117050495,-500.0,0.00035616,2]
[309781636,1704117050504,-616.82,0.00035616,2]
[309781637,1704117050513,-589.53,0.00035616,2]
[309781638,1704117050522,-500.0,0.00035616,2]
[309781639,1704117050532,-500.0,0.00035616,2]
[309781640,1704117050542,-500.0,0.00035616,2]
[309781641,1704117050551,-500.0,0.00035616,2]
[309781642,1704117050562,-500.0,0.00035616,2]
[309781643,1704117050572,-500.0,0.00035616,2]
[309781644,1704117050582,-500.0,0.00035616,2]
[309781645,1704117050592,-500.0,0.00035616,2]
[309781646,1704117050602,-500.0,0.00035616,2]
[309781647,1704117050611,-500.0,0.00035616,2]
[309781648,1704117050620,-500.0,0.00035616,2]
[309781649,1704117050630,-500.0,0.00035616,2]
[309781650,1704117050639,-531.7,0.00035616,2]
[309781651,1704117050648,-500.0,0.00035616,2]
[309781652,1704117050657,-508.89748044,0.00035616,2]
[309781653,1704117050666,-500.0,0.00035616,2]
[309781654,1704117050675,-576.36601244,0.00035616,2]
[309781655,1704117050684,-573.15233938,0.00035616,2]
[309781656,1704117050694,-500.0,0.00035616,2]
[309781657,1704117050704,-500.0,0.00035616,2]
[309781658,1704117050712,-500.0,0.00035616,2]
[309781659,1704117050722,-585.74823297,0.00035616,2]
[309781660,1704117050840,-500.0,0.00035616,2]
[309781661,1704117050850,-387.42075066,0.00035616,2]
[309781662,1704117050859,-519.82136697,0.00035616,2]
[309781663,1704117050868,-565.95,0.00035616,2]
[309781664,1704117050879,-544.4093539,0.00035616,2]
[309781665,1704117050888,-500.0,0.00035616,2]
[309781666,1704117050898,-571.5688055,0.00035616,2]
[309781667,1704117050908,-500.0,0.00035616,2]
[309781668,1704117050917,-500.0,0.00035616,2]
[309781669,1704117050926,-500.0,0.00035616,2]
[309781670,1704117050936,-500.0,0.00035616,2]
[309781671,1704117050946,-500.0,0.00035616,2]
[309781672,1704117050956,-500.0,0.00035616,2]
[309781673,1704117050966,-500.0,0.00035616,2]
[309781674,1704117050976,-500.0,0.00035616,2]
[309781675,1704117050986,-500.0,0.00035616,2]
[309781676,1704117050996,-500.0,0.00035616,2]
[309781677,1704117051006,-500.0,0.00035616,2]
[309781678,1704117051016,-500.0,0.00035616,2]
[309781679,1704117051026,-500.0,0.00035616,2]
[309781680,1704117051035,-541.74987198,0.00035616,2]
[309781681,1704117051045,-500.0,0.00035616,2]
[309781682,1704117051056,-500.0,0.00035616,2]
[309781683,1704117051066,-500.0,0.00035616,2]
[309781684,1704117051076,-551.96356384,0.00035616,2]
[309781685,1704117051088,-500.0,0.00035616,2]
[309781686,1704117051098,-500.0,0.00035616,2]
[309781687,1704117051107,-500.0,0.00035616,2]
[309781688,1704117051118,-500.0,0.00035616,2]
[309781689,1704117051128,-573.94136319,0.00035616,2]
[309781690,1704117051140,-500.0,0.00035616,2]
[309781691,1704117051150,-500.0,0.00035616,2]
[309781692,1704117051160,-500.0,0.00035616,2]
[309781693,1704117051170,-623.3,0.00035616,2]